bitfinex/quotes_BTCUSD_20230120
["timestamp","ask_amount","ask_price","bid_price","bid_amount"]
[1674180414629,0.74313119,21124.0,21123.0,0.036]
[1674180414890,0.82213119,21124.0,21123.0,0.037]
[1674180415147,0.82213119,21124.0,21123.0,0.036]
[1674180415148,0.74313119,21124.0,21123.0,0.036]
[1674180415431,0.74313119,21124.0,21123.0,0.037]
[1674180415686,0.74313119,21124.0,21123.0,0.036]
[1674180415948,0.82213119,21124.0,21123.0,0.037]
[1674180416720,1.21652619,21124.0,21123.0,0.036]
[1674180416967,1.29552619,21124.0,21123.0,0.037]
[1674180417261,1.37320619,21124.0,21123.0,0.036]
[1674180417491,1.68992119,21124.0,21123.0,0.036]
[1674180417756,1.76892119,21124.0,21123.0,0.037]
[1674180418019,1.68992119,21124.0,21123.0,0.036]
[1674180418276,1.76892119,21124.0,21123.0,0.037]
[1674180418547,1.68992119,21124.0,21123.0,0.0358834]
[1674180418802,1.76892119,21124.0,21123.0,0.0368834]
[1674180419863,1.77292119,21124.0,21123.0,0.0368834]
[1674180420136,1.68992119,21124.0,21123.0,0.0358834]
[1674180420411,1.77292119,21124.0,21123.0,0.0368834]
[1674180420718,1.68992119,21124.0,21123.0,0.0358834]
[1674180420980,1.88622875,21124.0,21123.0,0.0368834]
[1674180421264,1.80322875,21124.0,21123.0,0.0358834]
[1674180421520,1.80322875,21124.0,21123.0,0.0368834]
[1674180421521,1.88622875,21124.0,21123.0,0.0368834]
[1674180422607,1.80322875,21124.0,21123.0,0.0358834]
[1674180422860,1.88622875,21124.0,21123.0,0.0358834]
[1674180423361,1.96922875,21124.0,21123.0,0.0368834]
[1674180423880,1.80322875,21124.0,21123.0,0.0358834]
[1674180424136,1.68992119,21124.0,21123.0,0.0368834]
[1674180424398,1.77292119,21124.0,21123.0,0.0358834]
[1674180425158,2.0561943,21124.0,21123.0,0.0358834]
[1674180425431,2.1391943,21124.0,21123.0,0.0368834]
[1674180425688,1.85988674,21124.0,21123.0,0.0358834]
[1674180426214,1.94288674,21124.0,21123.0,0.0368834]
[1674180426394,1.85988674,21124.0,21123.0,0.0358834]
[1674180426395,1.94288674,21124.0,21123.0,0.0368834]
[1674180426649,1.97334881,21124.0,21123.0,0.0358834]
[1674180426900,1.94288674,21124.0,21123.0,0.0368834]
[1674180427166,1.85988674,21124.0,21123.0,0.0358834]
[1674180427429,1.94288674,21124.0,21123.0,0.0368834]
[1674180427650,2.056352,21124.0,21123.0,0.0368834]
[1674180427880,1.94288674,21124.0,21123.0,0.0368834]
[1674180428138,2.05635214,21124.0,21123.0,0.0368834]
[1674180428398,1.97335214,21124.0,21123.0,0.0358834]
[1674180428633,2.05635214,21124.0,21123.0,0.0368834]
[1674180428892,1.80338659,21124.0,21123.0,0.0358834]
[1674180429161,1.88638659,21124.0,21123.0,0.0368834]
[1674180429421,2.05635214,21124.0,21123.0,0.0358834]
[1674180429705,2.13935214,21124.0,21123.0,0.0368834]
[1674180429986,2.47811638,21124.0,21123.0,0.0358834]
[1674180430235,2.58919203,21124.0,21123.0,0.0358834]
[1674180430742,2.96626796,21124.0,21123.0,0.0358834]
[1674180431007,2.51198445,21124.0,21123.0,0.0368834]
[1674180431263,2.28526896,21124.0,21123.0,0.0368834]
[1674180431544,2.51198445,21124.0,21123.0,0.0368834]
[1674180431803,2.28526896,21124.0,21123.0,0.0368834]
[1674180432056,3.04924621,21124.0,21123.0,0.0368834]
[1674180432281,2.25881057,21124.0,21123.0,0.0358834]
[1674180432578,1.86729642,21124.0,21123.0,0.0358834]
[1674180432838,2.03744109,21124.0,21123.0,0.0358834]
[1674180433082,2.00715214,21124.0,21123.0,0.0368834]
[1674180433339,1.8107256,21124.0,21123.0,0.0358834]
[1674180433606,2.00714818,21124.0,21123.0,0.0368834]
[1674180434096,2.00714848,21124.0,21123.0,0.0358834]
[1674180434105,1.72358093,21124.0,21123.0,0.0358834]
[1674180434353,1.83700381,21124.0,21123.0,0.0358834]
[1674180434620,2.00715241,21124.0,21123.0,0.0358834]
[1674180435671,2.00620141,21124.0,21123.0,0.0358834]
[1674180435900,1.83605674,21124.0,21123.0,0.0358834]
[1674180436163,0.399715,21124.0,21123.0,0.41929134]
[1674180436754,0.083,21124.0,21123.0,0.41929134]
[1674180437242,0.390263,21124.0,21123.0,0.41929134]
[1674180437500,0.307263,21124.0,21123.0,0.41929134]
[1674180438030,0.083,21124.0,21123.0,0.42029134]
[1674180438828,0.45548669,21125.0,21123.0,0.42029134]
[1674180439097,0.079,21124.0,21123.0,0.42029134]
[1674180439356,0.078049,21124.0,21123.0,0.42029134]
[1674180439906,0.45548669,21125.0,21123.0,0.41929134]
[1674180440477,0.311232,21124.0,21123.0,0.0358834]
[1674180441032,0.6479135,21125.0,21123.0,0.0368834]
[1674180441286,0.5689135,21125.0,21123.0,0.0358834]
[1674180441551,0.079,21124.0,21123.0,0.0368834]
[1674180441897,0.384347,21124.0,21123.0,0.0368834]
[1674180442147,0.079,21124.0,21123.0,0.0368834]
[1674180442920,0.75471185,21124.0,21123.0,0.0358834]
[1674180443209,0.75376085,21124.0,21123.0,0.0358834]
[1674180443742,0.84376085,21124.0,21123.0,0.0358834]
[1674180444553,0.95718766,21124.0,21123.0,0.0358834]
[1674180445078,1.59977633,21124.0,21123.0,0.0358834]
[1674180445345,1.98317133,21124.0,21123.0,0.0358834]
[1674180445601,2.07317133,21124.0,21123.0,0.0358834]
[1674180445877,1.90302666,21124.0,21123.0,0.0358834]
[1674180446402,1.90207566,21124.0,21123.0,0.0358834]
[1674180447451,1.81207566,21124.0,21123.0,0.0358834]
[1674180447707,1.42968066,21124.0,21123.0,0.0358834]
[1674180448534,1.71311401,21124.0,21123.0,0.0358834]
[1674180449005,1.62211401,21124.0,21123.0,0.0358834]
[1674180449269,2.09550901,21124.0,21123.0,0.0358834]
[1674180450017,2.18650901,21124.0,21123.0,0.0358834]
[1674180451574,1.59985736,21124.0,21123.0,0.0358834]
[1674180451835,2.18650901,21124.0,21123.0,0.0358834]
[1674180452098,2.71485755,21124.0,21123.0,0.0358834]
[1674180452378,2.43159827,21124.0,21123.0,0.0358834]
[1674180452615,2.18654815,21124.0,21123.0,0.0358834]
[1674180452875,2.0732868,21124.0,21123.0,0.0358834]
[1674180453130,2.09554815,21124.0,21123.0,0.0358834]
[1674180453384,2.18654815,21124.0,21123.0,0.0358834]
[1674180453741,1.95983266,21124.0,21123.0,0.0358834]
[1674180454416,1.71315315,21124.0,21123.0,0.0358834]
[1674180454670,2.18654815,21124.0,21123.0,0.0358834]
[1674180455472,2.18655794,21124.0,21123.0,0.0358834]
[1674180457071,2.71414641,21124.0,21123.0,0.0358834]
[1674180459209,2.71414641,21124.0,21123.0,0.0308834]
[1674180459496,2.62314641,21124.0,21123.0,0.0308834]
[1674180459763,2.71414641,21124.0,21123.0,0.0308834]
[1674180460928,2.18654325,21124.0,21123.0,0.0308834]
[1674180461435,2.7140531,21124.0,21123.0,0.0308834]
[1674180462271,2.28195725,21124.0,21123.0,0.0308834]
[1674180462544,2.41288932,21124.0,21123.0,0.0308834]
[1674180462821,2.36958003,21124.0,21123.0,0.0308834]
[1674180463100,2.66958003,21124.0,21123.0,0.0308834]
[1674180463365,2.07198248,21124.0,21123.0,0.0308834]
[1674180463631,2.26461145,21124.0,21123.0,0.0308834]
[1674180464173,2.07198248,21124.0,21123.0,0.0308834]
[1674180464687,2.48947304,21124.0,21123.0,0.0308834]
[1674180465479,2.47304638,21124.0,21123.0,0.0308834]
[1674180465743,2.69990096,21124.0,21123.0,0.0308834]
[1674180466263,2.60890096,21124.0,21123.0,0.0308834]
[1674180466527,2.69990096,21124.0,21123.0,0.0308834]
[1674180466790,2.69989008,21124.0,21123.0,0.0308834]
[1674180467351,2.00188726,21124.0,21123.0,0.0308834]
[1674180467621,2.41453599,21124.0,21123.0,0.0308834]
[1674180467886,2.00188726,21124.0,21123.0,0.0308834]
[1674180468655,2.17201036,21124.0,21123.0,0.0308834]
[1674180468659,2.41452282,21124.0,21123.0,0.0308834]
[1674180468934,2.69809701,21124.0,21123.0,0.0308834]
[1674180470194,2.17201115,21124.0,21123.0,0.0308834]
[1674180470700,2.47200418,21124.0,21123.0,0.0308834]
[1674180470957,2.47200418,21124.0,21123.0,0.0108834]
[1674180471213,2.44421244,21124.0,21123.0,0.0108834]
[1674180472028,2.67104693,21124.0,21123.0,0.0108834]
[1674180472529,2.03077887,21124.0,21123.0,0.0108834]
[1674180472791,1.91736846,21124.0,21123.0,0.0108834]
[1674180473049,2.14420295,21124.0,21123.0,0.0108834]
[1674180473303,0.1,21123.0,21119.0,0.32978507]
[1674180473599,0.88565297,21122.0,21118.0,1.0341707]
[1674180473829,0.51408397,21121.0,21120.0,0.036]
[1674180474104,0.21789,21121.0,21119.0,0.473505]
[1674180474363,1.12572869,21123.0,21119.0,0.90049888]
[1674180474619,1.59916569,21123.0,21119.0,0.42699388]
[1674180474905,0.329179,21122.0,21119.0,0.42699388]
[1674180475169,0.208474,21121.0,21119.0,0.036]
[1674180475439,0.329179,21120.0,21119.0,0.036]
[1674180475698,0.88687217,21122.0,21118.0,0.88540427]
[1674180475951,0.88687217,21122.0,21118.0,0.92140427]
[1674180475952,0.78119314,21122.0,21118.0,0.92140427]
[1674180476447,0.72902365,21121.0,21118.0,1.39493327]
[1674180476701,0.233023,21120.0,21118.0,0.92142627]
[1674180476958,0.30463,21119.0,21118.0,0.92142627]
[1674180477209,0.42439365,21121.0,21118.0,0.92142627]
[1674180477474,0.53780782,21121.0,21118.0,0.92142627]
[1674180477988,0.309518,21120.0,21118.0,0.92142627]
[1674180478246,0.228135,21119.0,21118.0,0.92142627]
[1674180478502,0.53780782,21121.0,21118.0,0.92142627]
[1674180478758,0.003,21119.0,21118.0,0.92142627]
[1674180479275,0.003,21119.0,21118.0,1.39495527]
[1674180479784,0.003,21119.0,21118.0,0.92142627]
[1674180480915,0.003,21119.0,21118.0,0.44789727]
[1674180481168,0.41179068,21119.0,21118.0,0.02113319]
[1674180481426,0.74450368,21119.0,21118.0,0.02113319]
[1674180481691,0.41179068,21119.0,21118.0,0.02113319]
[1674180482750,0.41179068,21119.0,21117.0,0.95089078]
[1674180483280,0.41179068,21119.0,21117.0,1.39441992]
[1674180483551,0.41179068,21119.0,21117.0,0.47735878]
[1674180483811,0.42901108,21118.0,21117.0,0.47735878]
[1674180485982,0.50301108,21118.0,21117.0,0.47735878]
[1674180486253,0.42901108,21118.0,21117.0,0.47735878]
[1674180486840,0.43201108,21118.0,21117.0,0.47735878]
[1674180487095,0.50301108,21118.0,21117.0,0.47735878]
[1674180487351,0.42901108,21118.0,21117.0,0.47735878]
[1674180487600,0.43201108,21118.0,21117.0,0.47735878]
[1674180487844,0.43201108,21118.0,21117.0,0.00382378]
[1674180489164,0.003,21118.0,21117.0,0.45821945]
[1674180489439,0.37352493,21120.0,21117.0,0.45821945]
[1674180489699,0.003,21118.0,21117.0,0.45821945]
[1674180489951,0.003,21118.0,21117.0,1.18211045]
[1674180490466,0.003,21118.0,21117.0,1.33177145]
[1674180490761,0.003,21118.0,21117.0,1.35806245]
[1674180491278,0.003,21118.0,21117.0,1.25806245]
[1674180491539,0.003,21118.0,21117.0,0.93177145]
[1674180493432,0.003,21118.0,21117.0,0.45821945]
[1674180494477,0.3479384,21119.0,21117.0,0.45821945]
[1674180494753,0.003,21118.0,21117.0,0.45821945]
[1674180495009,0.3479384,21119.0,21117.0,0.45821945]
[1674180496216,0.93730656,21120.0,21117.0,0.45821945]
[1674180496481,1.05072073,21120.0,21117.0,0.45821945]
[1674180497040,0.003,21119.0,21117.0,0.45821945]
[1674180497308,1.05072073,21120.0,21117.0,0.45821945]
[1674180497570,0.94030656,21120.0,21118.0,0.35580163]
[1674180497833,0.93730656,21120.0,21118.0,0.35580163]
[1674180498089,0.46381656,21120.0,21118.0,0.35580163]
[1674180499139,0.46681656,21120.0,21118.0,0.35580163]
[1674180499402,0.46381656,21120.0,21118.0,0.35580163]
[1674180499665,0.40931133,21119.0,21117.0,0.00382378]
[1674180500168,0.40931133,21119.0,21117.0,0.44886038]
[1674180500703,0.41931133,21119.0,21117.0,0.44886038]
[1674180500971,0.40931133,21119.0,21117.0,0.00382378]
[1674180501262,0.300658,21118.0,21117.0,0.00382378]
[1674180502542,1.0702385,21119.0,21117.0,0.00382378]
[1674180502757,0.334264,21118.0,21117.0,0.00382378]
[1674180503310,0.9962385,21119.0,21117.0,0.00382378]
[1674180503569,0.73625176,21118.0,21117.0,0.00382378]
[1674180504087,0.81025176,21118.0,21117.0,0.00382378]
[1674180505364,1.20978076,21118.0,21117.0,0.00382378]
[1674180505631,1.77330976,21118.0,21117.0,0.00382378]
[1674180507185,1.88672393,21118.0,21117.0,0.00382378]
[1674180507443,1.77330976,21118.0,21117.0,0.00382378]
[1674180508000,1.88672393,21118.0,21117.0,0.00372887]
[1674180508251,1.46750317,21118.0,21117.0,0.00372887]
[1674180508518,1.85925356,21118.0,21117.0,0.00372887]
[1674180508777,1.76750317,21118.0,21117.0,0.00372887]
[1674180509035,2.40056581,21118.0,21117.0,0.00372887]
[1674180509563,2.23044455,21118.0,21117.0,0.00372887]
[1674180509822,2.14044455,21118.0,21117.0,0.00372887]
[1674180510078,2.23144455,21118.0,21117.0,0.00372887]
[1674180510365,2.94325346,21118.0,21117.0,0.00372887]
[1674180510612,3.01641897,21118.0,21117.0,0.00372887]
[1674180511128,2.73284563,21118.0,21117.0,0.00372887]
[1674180511396,2.64184563,21118.0,21117.0,0.00372887]
[1674180511766,0.1,21117.0,21116.0,0.00037454]
[1674180512195,3.24750957,21117.0,21116.0,0.00037454]
[1674180512464,3.2473634,21117.0,21116.0,0.00037454]
[1674180512722,2.94736661,21117.0,21116.0,0.00037454]
[1674180513021,2.2355631,21117.0,21116.0,0.00037454]
[1674180513498,2.663017,21117.0,21116.0,0.00037454]
[1674180513757,2.963017,21117.0,21116.0,0.00037454]
[1674180514020,1.96446509,21117.0,21116.0,0.00037454]
[1674180514282,2.05546509,21117.0,21116.0,0.00037454]
[1674180514798,1.8287537,21117.0,21116.0,0.00037454]
[1674180515326,2.05546509,21117.0,21116.0,0.00037454]
[1674180515630,1.94206831,21117.0,21116.0,0.00037454]
[1674180515866,2.23994095,21117.0,21116.0,0.00037454]
[1674180516386,1.77204061,21117.0,21116.0,0.00037454]
[1674180517723,2.05546509,21117.0,21116.0,0.00037454]
[1674180518262,1.94205039,21117.0,21116.0,0.00037454]
[1674180518769,2.19915627,21117.0,21116.0,0.00037454]
[1674180519032,2.08585958,21117.0,21116.0,0.00037454]
[1674180519297,2.36918397,21117.0,21116.0,0.00037454]
[1674180519673,1.68585958,21117.0,21116.0,0.00037454]
[1674180522419,1.5881373,21117.0,21116.0,0.00037454]
[1674180522694,1.01915793,21117.0,21116.0,0.00037454]
[1674180523233,1.75004819,21117.0,21116.0,0.00037454]
[1674180523521,1.82907589,21117.0,21116.0,0.00037454]
[1674180523761,1.45095126,21117.0,21116.0,0.00037454]
[1674180524028,1.75095126,21117.0,21116.0,0.00037454]
[1674180524288,1.94736596,21117.0,21116.0,0.00137454]
[1674180524548,2.22298402,21117.0,21116.0,0.00037454]
[1674180524805,2.07927263,21117.0,21116.0,0.00137454]
[1674180525069,1.99627263,21117.0,21116.0,0.00037454]
[1674180525331,2.23936596,21117.0,21116.0,0.00037454]
[1674180525591,2.54289026,21117.0,21116.0,0.00037454]
[1674180525848,3.07530686,21117.0,21116.0,0.00037454]
[1674180526159,3.30183782,21117.0,21116.0,0.00037454]
[1674180526362,3.85944001,21117.0,21116.0,0.00237454]
[1674180526632,3.22683782,21117.0,21116.0,0.00037454]
[1674180526898,3.22683782,21117.0,21116.0,0.00137454]
[1674180526899,2.78330686,21117.0,21116.0,0.00137454]
[1674180527149,2.70030686,21117.0,21116.0,0.00037454]
[1674180527497,2.78330686,21117.0,21116.0,0.00137454]
[1674180527658,2.96160135,21117.0,21116.0,0.00137454]
[1674180527916,3.38077013,21117.0,21116.0,0.00137454]
[1674180528176,2.96110616,21117.0,21116.0,0.00137454]
[1674180528432,2.30725162,21117.0,21116.0,0.00137454]
[1674180528691,2.7668394,21117.0,21116.0,0.00137454]
[1674180529731,2.18376665,21117.0,21116.0,0.00137454]
[1674180529991,2.29699575,21117.0,21116.0,0.00137454]
[1674180530537,2.59699575,21117.0,21116.0,0.00137454]
[1674180530801,2.4668394,21117.0,21116.0,0.00137454]
[1674180531084,2.7668394,21117.0,21116.0,0.00137454]
[1674180531384,2.85549217,21117.0,21116.0,0.00137454]
[1674180531611,2.860419,21117.0,21116.0,0.00137454]
[1674180532414,2.57736018,21117.0,21116.0,0.00137454]
[1674180532747,2.74720383,21117.0,21116.0,0.00137454]
[1674180532926,2.57736018,21117.0,21116.0,0.00137454]
[1674180533198,2.27736018,21117.0,21116.0,0.00137454]
[1674180533459,1.69055388,21117.0,21116.0,0.00137454]
[1674180534537,1.47003101,21117.0,21116.0,0.00137454]
[1674180534792,1.47003101,21117.0,21116.0,0.00037454]
[1674180534793,1.38703101,21117.0,21116.0,0.00037454]
[1674180535059,1.72102401,21117.0,21116.0,0.00037454]
[1674180535412,1.79602401,21117.0,21116.0,0.00237454]
[1674180536139,1.72102401,21117.0,21116.0,0.00037454]
[1674180536435,1.79602401,21117.0,21116.0,0.00237454]
[1674180536721,1.72102401,21117.0,21116.0,0.00037454]
[1674180536996,1.79602401,21117.0,21116.0,0.00237454]
[1674180537497,1.32247201,21117.0,21116.0,0.00237454]
[1674180539103,1.79602401,21117.0,21116.0,0.00237454]
[1674180539810,0.96217431,21117.0,21116.0,0.00237454]
[1674180540068,0.84892001,21117.0,21116.0,0.00237454]
[1674180540851,1.32247201,21117.0,21116.0,0.00237454]
[1674180542433,1.43572631,21117.0,21116.0,0.00237454]
[1674180542972,1.60556996,21117.0,21116.0,0.00237454]
[1674180543516,1.79602401,21117.0,21116.0,0.00237454]
[1674180544723,1.90927831,21117.0,21116.0,0.00237454]
[1674180544981,2.07912196,21117.0,21116.0,0.01550878]
[1674180546308,1.90927831,21117.0,21116.0,0.01550878]
[1674180546572,1.79602401,21117.0,21116.0,0.01550878]
[1674180549002,1.90927831,21117.0,21116.0,0.01550878]
[1674180550320,2.07912196,21117.0,21116.0,0.01542865]
[1674180550584,1.79602401,21117.0,21116.0,0.01542865]
[1674180552759,1.90927831,21117.0,21116.0,0.01542865]
[1674180553304,1.63919495,21117.0,21116.0,0.01542865]
[1674180553560,2.55322793,21117.0,21116.0,0.01542865]
[1674180554013,3.09612214,21117.0,21116.0,0.01542865]
[1674180554014,2.7416614,21117.0,21116.0,0.01542865]
[1674180554283,2.02892354,21117.0,21116.0,0.01542865]
[1674180554542,2.45810615,21117.0,21116.0,0.01542865]
[1674180554807,2.74167258,21117.0,21116.0,0.01542865]
[1674180555321,2.74165054,21117.0,21116.0,0.01542865]
[1674180555632,2.02892354,21117.0,21116.0,0.01542865]
[1674180556164,2.08613387,21117.0,21116.0,0.01542865]
[1674180556690,3.09681056,21117.0,21116.0,0.01542865]
[1674180556943,2.81324262,21117.0,21116.0,0.01542865]
[1674180557213,3.09681056,21117.0,21116.0,0.01542865]
[1674180557478,2.62325856,21117.0,21116.0,0.01542865]
[1674180557784,2.55429631,21117.0,21116.0,0.01542865]
[1674180558063,1.91592637,21117.0,21116.0,0.01542865]
[1674180558320,0.548552,21117.0,21116.0,0.01542865]
[1674180558591,0.075,21117.0,21116.0,0.46193075]
[1674180560758,0.075,21117.0,21116.0,0.01542865]
[1674180565111,0.075,21117.0,21116.0,0.45130849]
[1674180566130,0.075,21117.0,21116.0,0.55130849]
[1674180566644,0.075,21117.0,21116.0,1.02488249]
[1674180566897,0.075,21117.0,21116.0,1.49845649]
[1674180568814,0.075,21117.0,21116.0,1.81083949]
[1674180569331,0.075,21117.0,21116.0,1.49845649]
[1674180571001,0.075,21117.0,21116.0,1.79845649]
[1674180571278,0.075,21117.0,21116.0,0.45130849]
[1674180571534,0.075,21117.0,21116.0,0.92488249]
[1674180571816,0.075,21117.0,21116.0,1.39845649]
[1674180572909,0.07489478,21117.0,21116.0,1.39845649]
[1674180575770,0.07489478,21117.0,21116.0,0.92488249]
[1674180576565,0.07489478,21117.0,21116.0,1.22488249]
[1674180576831,0.07489478,21117.0,21116.0,1.25367549]
[1674180577070,0.07489478,21117.0,21116.0,0.92488249]
[1674180577609,0.07489478,21117.0,21116.0,1.22488249]
[1674180577849,0.07489478,21117.0,21116.0,1.24771549]
[1674180578078,0.07489478,21117.0,21116.0,0.92488249]
[1674180578823,0.07489478,21117.0,21116.0,1.55316349]
[1674180579347,0.07489478,21117.0,21116.0,2.65846982]
[1674180579617,0.07489478,21117.0,21116.0,2.84392009]
[1674180579909,0.37303548,21122.0,21116.0,1.59735765]
[1674180580164,0.37303548,21122.0,21117.0,0.4]
[1674180580438,0.37303548,21122.0,21118.0,0.947041]
[1674180580701,0.37303548,21122.0,21119.0,0.3]
[1674180580999,0.37303548,21122.0,21119.0,0.773505]
[1674180581256,0.37303548,21122.0,21119.0,0.473505]
[1674180581804,0.473432,21123.0,21119.0,0.473505]
[1674180581805,0.5869043,21123.0,21119.0,0.473505]
[1674180582071,0.013,21122.0,21120.0,0.45615882]
[1674180582670,0.56204794,21123.0,21120.0,0.45615882]
[1674180582918,0.46157564,21123.0,21120.0,0.45615882]
[1674180583161,0.57504794,21123.0,21120.0,0.45615882]
[1674180583402,0.068,21122.0,21120.0,0.93162982]
[1674180584175,0.44857564,21123.0,21121.0,0.38002785]
[1674180584435,0.068,21123.0,21121.0,0.38002785]
[1674180584905,0.068,21122.0,21121.0,0.38002785]
[1674180585158,0.55810396,21124.0,21121.0,0.38002785]
[1674180585398,0.069,21123.0,21121.0,0.38202785]
[1674180585654,1.03151296,21124.0,21121.0,0.38002785]
[1674180585897,0.069,21122.0,21121.0,0.38202785]
[1674180586155,0.35060248,21123.0,21121.0,0.38002785]
[1674180587170,0.41960248,21123.0,21121.0,0.38202785]
[1674180588445,0.069,21123.0,21121.0,0.38202785]
[1674180593382,0.45829993,21122.0,21121.0,0.002]
[1674180593667,0.78058793,21122.0,21121.0,0.002]
[1674180594758,0.45829993,21122.0,21120.0,0.38203241]
[1674180595011,0.52729993,21122.0,21121.0,0.002]
[1674180596068,0.52729993,21122.0,21121.0,0.00192873]
[1674180597377,0.45829993,21122.0,21119.0,0.80882615]
[1674180597654,0.52729993,21122.0,21121.0,0.002]
[1674180598309,0.45829993,21122.0,21119.0,0.80882615]
[1674180598453,0.52629993,21122.0,21119.0,0.81082615]
[1674180598707,0.45829993,21122.0,21119.0,0.80882615]
[1674180598936,0.64077223,21122.0,21121.0,0.002]
[1674180599186,0.45829993,21122.0,21119.0,0.80882615]
[1674180599443,0.52729993,21122.0,21119.0,0.81082615]
[1674180599698,0.52729993,21122.0,21119.0,0.80882615]
[1674180599952,0.59629993,21122.0,21121.0,0.002]
[1674180600472,0.60199437,21122.0,21121.0,0.002]
[1674180601742,0.5868933,21123.0,21120.0,0.49765445]
[1674180602066,0.069,21122.0,21120.0,0.49765445]
[1674180602589,0.138,21122.0,21121.0,0.44769398]
[1674180603115,1.03768791,21123.0,21121.0,0.44569398]
[1674180603371,0.99321561,21123.0,21121.0,0.44569398]
[1674180603625,1.10668791,21123.0,21121.0,0.44569398]
[1674180603884,0.331187,21122.0,21121.0,0.44569398]
[1674180604151,1.10668791,21123.0,21121.0,0.44569398]
[1674180604412,0.069,21122.0,21121.0,0.44769398]
[1674180604986,0.069,21122.0,21121.0,0.92115598]
[1674180605235,0.069,21122.0,21121.0,0.44769398]
[1674180605756,0.45079461,21123.0,21121.0,0.44569398]
[1674180606362,0.069,21122.0,21121.0,0.44769398]
[1674180606511,0.069,21122.0,21121.0,1.39460998]
[1674180606733,0.069,21122.0,21121.0,2.01568998]
[1674180607403,0.069,21122.0,21121.0,2.01368998]
[1674180607640,1.00970474,21125.0,21122.0,0.1]
[1674180607778,0.063,21123.0,21122.0,0.573432]
[1674180608010,0.89623244,21125.0,21123.0,0.41762594]
[1674180608490,0.76669798,21126.0,21123.0,1.36445394]
[1674180608491,0.12313614,21126.0,21123.0,1.36445394]
[1674180608719,0.12313614,21126.0,21124.0,0.1]
[1674180608970,0.00966384,21126.0,21124.0,0.573393]
[1674180609211,0.062,21125.0,21124.0,1.046788]
[1674180609464,0.00966384,21126.0,21124.0,1.046788]
[1674180609676,0.00966384,21126.0,21125.0,0.326325]
[1674180609954,0.00966384,21126.0,21125.0,0.946744]
[1674180610221,0.00966384,21126.0,21125.0,1.246744]
[1674180610449,0.07166384,21126.0,21125.0,1.562706]
[1674180610694,0.00966384,21126.0,21125.0,1.562706]
[1674180610955,0.07166384,21126.0,21125.0,1.99085396]
[1674180611966,0.07166384,21126.0,21125.0,1.69085396]
[1674180612207,0.07166384,21126.0,21125.0,1.37489196]
[1674180612698,0.07166384,21126.0,21125.0,1.98816896]
[1674180613184,0.07166384,21126.0,21125.0,1.37489196]
[1674180614163,0.07166384,21126.0,21125.0,1.67489196]
[1674180614403,0.07166384,21126.0,21125.0,2.00377196]
[1674180615395,0.07166384,21126.0,21125.0,1.70377196]
[1674180615890,0.07166384,21126.0,21125.0,1.37489196]
[1674180616639,0.07166384,21126.0,21125.0,1.69592396]
[1674180616879,0.07166384,21126.0,21125.0,1.37489196]
[1674180617131,0.07166384,21126.0,21125.0,2.00086596]
[1674180618329,0.07157025,21126.0,21125.0,1.05412196]
[1674180618594,0.07157025,21126.0,21125.0,2.00086596]
[1674180621472,0.07157025,21126.0,21125.0,1.70086596]
[1674180621654,0.07157025,21126.0,21125.0,2.00086596]
[1674180622460,0.07157025,21126.0,21125.0,1.37489196]
[1674180622740,0.07157025,21126.0,21125.0,0.476372]
[1674180623000,0.31511025,21126.0,21125.0,0.473372]
[1674180623531,0.00957025,21126.0,21125.0,0.473372]
[1674180623808,0.32642625,21126.0,21125.0,0.473372]
[1674180624117,0.00957025,21126.0,21125.0,0.473372]
[1674180624654,0.06657025,21126.0,21125.0,0.476372]
[1674180625459,0.06657025,21126.0,21125.0,0.87677673]
[1674180628586,0.06657025,21126.0,21125.0,0.003]
[1674180628850,0.50538741,21126.0,21125.0,0.003]
[1674180629079,0.83830941,21126.0,21125.0,0.003]
[1674180629409,0.83830941,21126.0,21125.0,0.00288325]
[1674180629613,0.50538741,21126.0,21125.0,0.00288325]
[1674180629867,0.81022741,21126.0,21125.0,0.00288325]
[1674180640694,1.12336721,21126.0,21125.0,0.00288325]
[1674180640993,1.23683951,21126.0,21125.0,0.00288325]
[1674180641533,0.92369971,21126.0,21125.0,0.00288325]
[1674180643642,0.81022741,21126.0,21125.0,0.00288325]
[1674180644132,0.92369971,21126.0,21125.0,0.00288325]
[1674180644657,0.81022741,21126.0,21125.0,0.00288325]
[1674180645133,0.50538741,21126.0,21125.0,0.00288325]
[1674180645395,0.82975841,21126.0,21125.0,0.00288325]
[1674180645650,0.50538741,21126.0,21125.0,0.00288325]
[1674180646197,0.80572541,21126.0,21125.0,0.00288325]
[1674180646468,0.50538741,21126.0,21125.0,0.00288325]
[1674180646982,0.83130041,21126.0,21125.0,0.00288325]
[1674180647254,0.50538741,21126.0,21125.0,0.00288325]
[1674180648089,0.81570441,21126.0,21125.0,0.00288325]
[1674180648341,0.50538741,21126.0,21125.0,0.00288325]
[1674180648645,0.94227371,21126.0,21125.0,0.00288325]
[1674180650268,0.50538741,21126.0,21125.0,0.00288325]
[1674180650521,0.83558041,21126.0,21125.0,0.00288325]
[1674180651057,0.82798841,21126.0,21125.0,0.00288325]
[1674180651315,0.72033241,21126.0,21125.0,0.00288325]
[1674180651874,0.50538741,21126.0,21125.0,0.10232325]
[1674180652135,0.50538741,21126.0,21125.0,0.00288325]
[1674180653157,0.61885971,21126.0,21125.0,0.00288325]
[1674180653173,0.78907055,21126.0,21125.0,0.00288325]
[1674180653429,1.00174125,21126.0,21125.0,0.00288325]
[1674180653958,1.11515458,21126.0,21125.0,0.00288325]
[1674180654236,0.94494374,21126.0,21125.0,0.00288325]
[1674180657837,1.00174125,21126.0,21125.0,0.00288325]
[1674180659145,2.57940088,21126.0,21125.0,0.0028068]
[1674180659410,2.05293141,21126.0,21125.0,0.0028068]
[1674180659705,2.35293141,21126.0,21125.0,0.0028068]
[1674180659931,2.06936347,21126.0,21125.0,0.0028068]
[1674180660775,2.41845305,21126.0,21125.0,0.0028068]
[1674180660996,2.06936347,21126.0,21125.0,0.0028068]
[1674180661802,2.70983498,21126.0,21125.0,0.0028068]
[1674180662066,2.40983498,21126.0,21125.0,0.0028068]
[1674180662853,2.36936347,21126.0,21125.0,0.0028068]
[1674180663591,0.00216957,21124.0,21116.0,0.12653121]
[1674180663594,0.00216957,21124.0,21118.0,0.38623605]
[1674180663843,0.11344997,21121.0,21118.0,0.38623605]
[1674180664108,0.51766897,21120.0,21118.0,0.38623605]
[1674180664367,0.214198,21119.0,21118.0,0.38623605]
[1674180664901,0.687705,21119.0,21118.0,0.38623605]
[1674180665681,1.161212,21119.0,21118.0,0.38623605]
[1674180665961,1.161212,21119.0,21116.0,0.01342865]
[1674180666240,1.70072441,21119.0,21116.0,0.01342865]
[1674180666495,1.50640344,21119.0,21116.0,0.01342865]
[1674180667025,1.64449017,21119.0,21116.0,0.01342865]
[1674180667285,1.95049017,21119.0,21116.0,0.01342865]
[1674180667575,1.42240344,21119.0,21116.0,0.35902711]